[Event "Titled Tuesday Blitz October 25 Late 2022"]
[White "Zochowski, Kacper"]
[Black "Kopacz, Grzegorz"]
[WhiteFideId "1125494"]
[BlackFideId "1109880"]
[WhiteElo "2292"]
[BlackElo "2037"]
[Result "1-0"]
[Round "05"]
[TimeControl "180+1"]
[Date "2022.10.26"]
[WhiteClock "0:01:31"]
[BlackClock "0:00:20"]

1. Nf3 {[%clk 0:02:47]}  c5 {[%clk 0:02:59]} 2. c4 {[%clk 0:02:48]}  Nc6 {[%clk 0:02:57]} 3. b3 {[%clk 0:02:48]}  Nf6 {[%clk 0:02:53]} 4. Bb2 {[%clk 0:02:48]}  g6 {[%clk 0:02:53]} 5. Bxf6 {[%clk 0:02:47]}  exf6 {[%clk 0:02:53]} 6. Nc3 {[%clk 0:02:47]}  Bg7 {[%clk 0:02:53]} 7. g3 {[%clk 0:02:48]}  f5 {[%clk 0:02:52]} 8. Rc1 {[%clk 0:02:48]}  O-O {[%clk 0:02:50]} 9. Bg2 {[%clk 0:02:49]}  Re8 {[%clk 0:02:44]} 10. O-O {[%clk 0:02:49]}  d6 {[%clk 0:02:41]} 11. Ne1 {[%clk 0:02:49]}  Qd7 {[%clk 0:02:37]} 12. Nd3 {[%clk 0:02:50]}  b6 {[%clk 0:02:36]} 13. Nf4 {[%clk 0:02:49]}  Bb7 {[%clk 0:02:35]} 14. e3 {[%clk 0:02:48]}  Nb4 {[%clk 0:02:27]} 15. Bxb7 {[%clk 0:02:43]}  Qxb7 {[%clk 0:02:26]} 16. a3 {[%clk 0:02:44]}  Nc6 {[%clk 0:02:18]} 17. Qf3 {[%clk 0:02:44]}  Qd7 {[%clk 0:02:12]} 18. Ncd5 {[%clk 0:02:42]}  Ne7 {[%clk 0:02:05]} 19. Nxe7+ {[%clk 0:02:39]}  Qxe7 {[%clk 0:02:04]} 20. Nd5 {[%clk 0:02:40]}  Qd7 {[%clk 0:02:01]} 21. Rb1 {[%clk 0:02:40]}  Rab8 {[%clk 0:01:59]} 22. b4 {[%clk 0:02:39]}  cxb4 {[%clk 0:01:54]} 23. axb4 {[%clk 0:02:39]}  a5 {[%clk 0:01:53]} 24. d4 {[%clk 0:02:07]}  axb4 {[%clk 0:01:46]} 25. Rxb4 {[%clk 0:02:05]}  h5 {[%clk 0:01:14]} 26. Rfb1 {[%clk 0:02:03]}  h4 {[%clk 0:01:13]} 27. Rxb6 {[%clk 0:02:01]}  Rxb6 {[%clk 0:01:12]} 28. Rxb6 {[%clk 0:02:02]}  hxg3 {[%clk 0:01:11]} 29. hxg3 {[%clk 0:02:02]}  Qc8 {[%clk 0:01:03]} 30. Rc6 {[%clk 0:01:51]}  Qd7 {[%clk 0:00:57]} 31. Rc7 {[%clk 0:01:44]}  Qa4 {[%clk 0:00:55]} 32. Kg2 {[%clk 0:01:43]}  Qc2 {[%clk 0:00:43]} 33. Nf4 {[%clk 0:01:35]}  Rb8 {[%clk 0:00:28]} 34. Qd5 {[%clk 0:01:31]}  Rf8 {[%clk 0:00:20]} 35. Nxg6 {[%clk 0:01:31]} 1-0


[Site "https://www.chess.com"]

[Event "Titled Tuesday Blitz October 25 Late 2022"]
[White "Adla, Diego"]
[Black "Bordi, Kevin"]
[WhiteFideId "100072"]
[BlackFideId "621862"]
[WhiteElo "2377"]
[BlackElo "2820"]
[Result "0-1"]
[Round "06"]
[TimeControl "180+1"]
[Date "2022.10.26"]
[WhiteClock "0:00:23"]
[BlackClock "0:00:07"]

1. c4 {[%clk 0:03:00]}  c6 {[%clk 0:03:00]} 2. d4 {[%clk 0:03:00]}  d5 {[%clk 0:03:00]} 3. cxd5 {[%clk 0:03:01]}  cxd5 {[%clk 0:03:00]} 4. Bf4 {[%clk 0:03:01]}  Nf6 {[%clk 0:03:00]} 5. e3 {[%clk 0:03:01]}  Nc6 {[%clk 0:03:01]} 6. Nc3 {[%clk 0:02:59]}  Bf5 {[%clk 0:03:01]} 7. Qb3 {[%clk 0:02:57]}  Qb6 {[%clk 0:03:00]} 8. Qxb6 {[%clk 0:02:36]}  axb6 {[%clk 0:03:00]} 9. Nf3 {[%clk 0:02:36]}  e6 {[%clk 0:03:00]} 10. Bb5 {[%clk 0:02:30]}  Bb4 {[%clk 0:02:58]} 11. Ne5 {[%clk 0:02:30]}  Rc8 {[%clk 0:02:57]} 12. O-O {[%clk 0:02:26]}  O-O {[%clk 0:02:54]} 13. Bxc6 {[%clk 0:02:18]}  bxc6 {[%clk 0:02:54]} 14. Na4 {[%clk 0:02:18]}  b5 {[%clk 0:01:38]} 15. Nc5 {[%clk 0:02:16]}  Bxc5 {[%clk 0:01:33]} 16. dxc5 {[%clk 0:02:16]}  Ne4 {[%clk 0:01:34]} 17. Rfc1 {[%clk 0:02:12]}  f6 {[%clk 0:01:23]} 18. Nf3 {[%clk 0:02:09]}  e5 {[%clk 0:01:21]} 19. Bg3 {[%clk 0:02:09]}  Ra8 {[%clk 0:01:20]} 20. Ne1 {[%clk 0:02:01]}  Ra4 {[%clk 0:01:11]} 21. b3 {[%clk 0:01:49]}  Ra6 {[%clk 0:01:06]} 22. f3 {[%clk 0:01:45]}  Nxg3 {[%clk 0:01:06]} 23. hxg3 {[%clk 0:01:46]}  Rfa8 {[%clk 0:01:06]} 24. g4 {[%clk 0:01:41]}  Bg6 {[%clk 0:01:05]} 25. Nc2 {[%clk 0:01:38]}  Bxc2 {[%clk 0:01:04]} 26. Rxc2 {[%clk 0:01:38]}  Ra3 {[%clk 0:01:05]} 27. Rb2 {[%clk 0:01:29]}  b4 {[%clk 0:00:59]} 28. e4 {[%clk 0:01:18]}  d4 {[%clk 0:00:41]} 29. Kf2 {[%clk 0:01:16]}  Kf7 {[%clk 0:00:38]} 30. Ke2 {[%clk 0:01:15]}  R8a5 {[%clk 0:00:38]} 31. Rc2 {[%clk 0:01:12]}  Rxb3 {[%clk 0:00:37]} 32. axb3 {[%clk 0:01:12]}  Rxa1 {[%clk 0:00:37]} 33. Rc4 {[%clk 0:01:13]}  Ra2+ {[%clk 0:00:36]} 34. Kd3 {[%clk 0:01:11]}  Rxg2 {[%clk 0:00:36]} 35. Rxb4 {[%clk 0:01:11]}  Rf2 {[%clk 0:00:36]} 36. Rb7+ {[%clk 0:01:11]}  Kg6 {[%clk 0:00:33]} 37. b4 {[%clk 0:01:11]}  Rxf3+ {[%clk 0:00:33]} 38. Kc2 {[%clk 0:01:09]}  Rc3+ {[%clk 0:00:33]} 39. Kb2 {[%clk 0:01:09]}  Rc4 {[%clk 0:00:33]} 40. Kb3 {[%clk 0:01:09]}  Rc1 {[%clk 0:00:32]} 41. Rc7 {[%clk 0:01:05]}  d3 {[%clk 0:00:16]} 42. Rd7 {[%clk 0:01:05]}  Kg5 {[%clk 0:00:17]} 43. Rxd3 {[%clk 0:01:02]}  Kxg4 {[%clk 0:00:17]} 44. Rd7 {[%clk 0:00:58]}  g5 {[%clk 0:00:16]} 45. Rxh7 {[%clk 0:00:57]}  Kf4 {[%clk 0:00:16]} 46. Rh6 {[%clk 0:00:55]}  Kxe4 {[%clk 0:00:17]} 47. Rxf6 {[%clk 0:00:55]}  g4 {[%clk 0:00:17]} 48. Rxc6 {[%clk 0:00:55]}  g3 {[%clk 0:00:18]} 49. Rg6 {[%clk 0:00:55]}  Kf3 {[%clk 0:00:18]} 50. c6 {[%clk 0:00:54]}  g2 {[%clk 0:00:18]} 51. b5 {[%clk 0:00:53]}  e4 {[%clk 0:00:17]} 52. Kb4 {[%clk 0:00:45]}  g1=Q {[%clk 0:00:16]} 53. Rxg1 {[%clk 0:00:44]}  Rxg1 {[%clk 0:00:17]} 54. b6 {[%clk 0:00:45]}  e3 {[%clk 0:00:16]} 55. c7 {[%clk 0:00:45]}  Rc1 {[%clk 0:00:14]} 56. b7 {[%clk 0:00:41]}  e2 {[%clk 0:00:15]} 57. c8=Q {[%clk 0:00:32]}  e1=Q+ {[%clk 0:00:15]} 58. Kb5 {[%clk 0:00:32]}  Qe5+ {[%clk 0:00:14]} 59. Kb6 {[%clk 0:00:30]}  Rb1+ {[%clk 0:00:10]} 60. Ka7 {[%clk 0:00:29]}  Ra1+ {[%clk 0:00:10]} 61. Kb6 {[%clk 0:00:26]}  Qa5+ {[%clk 0:00:09]} 62. Kc6 {[%clk 0:00:26]}  Rc1+ {[%clk 0:00:09]} 63. Kd6 {[%clk 0:00:26]}  Rd1+ {[%clk 0:00:06]} 64. Kc6 {[%clk 0:00:25]}  Qa6+ {[%clk 0:00:06]} 65. Kc5 {[%clk 0:00:23]}  Rc1+ {[%clk 0:00:06]} 66. Kb4 {[%clk 0:00:23]}  Rxc8 {[%clk 0:00:07]} 0-1


[Site "https://www.chess.com"]

[Event "Titled Tuesday Blitz October 25 Late 2022"]
[White "Aggelis, Nikolaos"]
[Black "Wieczorek, Zbigniew"]
[WhiteFideId "4213220"]
[BlackFideId "1102001"]
[WhiteElo "2187"]
[BlackElo "2355"]
[Result "1-0"]
[Round "06"]
[TimeControl "180+1"]
[Date "2022.10.26"]
[WhiteClock "0:00:03"]
[BlackClock "0:00:03"]

1. d4 {[%clk 0:02:55]}  g6 {[%clk 0:02:13]} 2. Nf3 {[%clk 0:02:50]}  Bg7 {[%clk 0:02:13]} 3. g3 {[%clk 0:02:49]}  Nf6 {[%clk 0:02:12]} 4. Bg2 {[%clk 0:02:49]}  O-O {[%clk 0:02:13]} 5. O-O {[%clk 0:02:49]}  d6 {[%clk 0:02:14]} 6. Re1 {[%clk 0:02:48]}  Nbd7 {[%clk 0:02:15]} 7. e4 {[%clk 0:02:48]}  e5 {[%clk 0:02:15]} 8. Nc3 {[%clk 0:02:46]}  c6 {[%clk 0:02:14]} 9. a4 {[%clk 0:02:46]}  a5 {[%clk 0:02:14]} 10. h3 {[%clk 0:02:45]}  Re8 {[%clk 0:02:14]} 11. Be3 {[%clk 0:02:44]}  Qe7 {[%clk 0:02:11]} 12. Qd2 {[%clk 0:02:41]}  exd4 {[%clk 0:02:08]} 13. Nxd4 {[%clk 0:02:39]}  Ne5 {[%clk 0:02:09]} 14. b3 {[%clk 0:02:39]}  c5 {[%clk 0:02:00]} 15. Ndb5 {[%clk 0:02:34]}  Bxh3 {[%clk 0:01:57]} 16. Qxd6 {[%clk 0:02:27]}  Bxg2 {[%clk 0:01:54]} 17. Kxg2 {[%clk 0:02:25]}  Nfg4 {[%clk 0:01:44]} 18. Qxe7 {[%clk 0:02:20]}  Nxe3+ {[%clk 0:01:42]} 19. Rxe3 {[%clk 0:02:15]}  Rxe7 {[%clk 0:01:42]} 20. Nd5 {[%clk 0:02:08]}  Ree8 {[%clk 0:01:42]} 21. Rae1 {[%clk 0:01:55]}  Ng4 {[%clk 0:01:38]} 22. Rd3 {[%clk 0:01:44]}  Rad8 {[%clk 0:01:35]} 23. f3 {[%clk 0:01:38]}  Ne5 {[%clk 0:01:34]} 24. Rdd1 {[%clk 0:01:35]}  h5 {[%clk 0:01:28]} 25. Ndc7 {[%clk 0:01:28]}  Rf8 {[%clk 0:01:27]} 26. Rd5 {[%clk 0:01:20]}  b6 {[%clk 0:01:23]} 27. Red1 {[%clk 0:01:18]}  Rxd5 {[%clk 0:01:21]} 28. Rxd5 {[%clk 0:00:57]}  c4 {[%clk 0:01:15]} 29. Rd6 {[%clk 0:00:55]}  cxb3 {[%clk 0:01:13]} 30. cxb3 {[%clk 0:00:55]}  f5 {[%clk 0:01:02]} 31. f4 {[%clk 0:00:46]}  Ng4 {[%clk 0:01:02]} 32. e5 {[%clk 0:00:43]}  g5 {[%clk 0:00:29]} 33. Ne6 {[%clk 0:00:30]}  Rc8 {[%clk 0:00:21]} 34. Nxg5 {[%clk 0:00:19]}  Rc2+ {[%clk 0:00:20]} 35. Kf1 {[%clk 0:00:18]}  Bf8 {[%clk 0:00:19]} 36. Rd8 {[%clk 0:00:17]}  Ne3+ {[%clk 0:00:15]} 37. Kg1 {[%clk 0:00:15]}  h4 {[%clk 0:00:13]} 38. gxh4 {[%clk 0:00:12]}  Kg7 {[%clk 0:00:06]} 39. Ne6+ {[%clk 0:00:12]}  Kg6 {[%clk 0:00:06]} 40. Rxf8 {[%clk 0:00:12]}  Kh5 {[%clk 0:00:07]} 41. Rg8 {[%clk 0:00:12]}  Kxh4 {[%clk 0:00:07]} 42. Nbd4 {[%clk 0:00:11]}  Rb2 {[%clk 0:00:06]} 43. Nf3+ {[%clk 0:00:09]}  Kh5 {[%clk 0:00:06]} 44. Rg5+ {[%clk 0:00:08]}  Kh6 {[%clk 0:00:06]} 45. Nf8 {[%clk 0:00:08]}  Rb1+ {[%clk 0:00:03]} 46. Kf2 {[%clk 0:00:07]}  Ng4+ {[%clk 0:00:03]} 47. Kg3 {[%clk 0:00:06]}  Rxb3 {[%clk 0:00:03]} 48. e6 {[%clk 0:00:03]} 1-0


[Site "https://www.chess.com"]

[Event "Titled Tuesday Blitz October 25 Late 2022"]
[White "Amburgy, Ryan"]
[Black "Zhigalko, Sergei"]
[WhiteFideId "30924820"]
[BlackFideId "13502956"]
[WhiteElo "2121"]
[BlackElo "2662"]
[Result "0-1"]
[Round "06"]
[TimeControl "180+1"]
[Date "2022.10.26"]
[WhiteClock "0:00:19"]
[BlackClock "0:00:14"]

1. Nf3 {[%clk 0:03:00]}  d5 {[%clk 0:02:58]} 2. e3 {[%clk 0:03:00]}  Nf6 {[%clk 0:02:58]} 3. c4 {[%clk 0:03:00]}  e6 {[%clk 0:02:58]} 4. Nc3 {[%clk 0:03:00]}  b6 {[%clk 0:02:58]} 5. b3 {[%clk 0:03:01]}  Bb7 {[%clk 0:02:58]} 6. Bb2 {[%clk 0:03:01]}  Bd6 {[%clk 0:02:58]} 7. cxd5 {[%clk 0:03:01]}  exd5 {[%clk 0:02:59]} 8. Rc1 {[%clk 0:03:02]}  a6 {[%clk 0:02:59]} 9. Ne2 {[%clk 0:03:02]}  O-O {[%clk 0:02:58]} 10. Ned4 {[%clk 0:03:01]}  Re8 {[%clk 0:02:55]} 11. Nf5 {[%clk 0:02:59]}  Bf8 {[%clk 0:02:55]} 12. Be2 {[%clk 0:02:59]}  g6 {[%clk 0:02:47]} 13. Ng3 {[%clk 0:02:59]}  Nbd7 {[%clk 0:02:43]} 14. O-O {[%clk 0:02:58]}  Bd6 {[%clk 0:02:42]} 15. d4 {[%clk 0:02:52]}  Qe7 {[%clk 0:02:36]} 16. Qc2 {[%clk 0:02:30]}  Rac8 {[%clk 0:02:31]} 17. Rfd1 {[%clk 0:02:28]}  c5 {[%clk 0:02:16]} 18. dxc5 {[%clk 0:02:23]}  bxc5 {[%clk 0:02:16]} 19. Qd2 {[%clk 0:02:06]}  d4 {[%clk 0:02:13]} 20. Bc4 {[%clk 0:01:27]}  Bxf3 {[%clk 0:01:20]} 21. gxf3 {[%clk 0:01:27]}  Ne5 {[%clk 0:01:21]} 22. Qe2 {[%clk 0:00:39]}  Nxc4 {[%clk 0:00:51]} 23. Rxc4 {[%clk 0:00:34]}  Nd5 {[%clk 0:00:46]} 24. Ne4 {[%clk 0:00:27]}  Bb8 {[%clk 0:00:22]} 25. Qf1 {[%clk 0:00:23]}  f5 {[%clk 0:00:07]} 26. Ng3 {[%clk 0:00:21]}  h5 {[%clk 0:00:05]} 27. exd4 {[%clk 0:00:18]}  h4 {[%clk 0:00:05]} 28. dxc5 {[%clk 0:00:18]}  Nf4 {[%clk 0:00:03]} 29. Rdd4 {[%clk 0:00:10]}  hxg3 {[%clk 0:00:02]} 30. Rxf4 {[%clk 0:00:11]}  gxh2+ {[%clk 0:00:01]} 31. Kh1 {[%clk 0:00:12]}  Bxf4 {[%clk 0:00:02]} 32. Rxf4 {[%clk 0:00:12]}  Qg5 {[%clk 0:00:01]} 33. Rc4 {[%clk 0:00:07]}  Rcd8 {[%clk 0:00:02]} 34. Rc1 {[%clk 0:00:07]}  Qh5 {[%clk 0:00:02]} 35. c6 {[%clk 0:00:07]}  Qxf3+ {[%clk 0:00:02]} 36. Qg2 {[%clk 0:00:07]}  Rd1+ {[%clk 0:00:02]} 37. Rxd1 {[%clk 0:00:07]}  Qxd1+ {[%clk 0:00:03]} 38. Kxh2 {[%clk 0:00:08]}  Kf7 {[%clk 0:00:03]} 39. c7 {[%clk 0:00:07]}  Qh5+ {[%clk 0:00:03]} 40. Qh3 {[%clk 0:00:07]}  Qxh3+ {[%clk 0:00:03]} 41. Kxh3 {[%clk 0:00:08]}  Ke6 {[%clk 0:00:03]} 42. Bd4 {[%clk 0:00:07]}  Kd7 {[%clk 0:00:03]} 43. Bb6 {[%clk 0:00:08]}  Re6 {[%clk 0:00:03]} 44. Ba5 {[%clk 0:00:08]}  Re2 {[%clk 0:00:03]} 45. b4 {[%clk 0:00:08]}  Rxf2 {[%clk 0:00:03]} 46. a4 {[%clk 0:00:08]}  Ra2 {[%clk 0:00:03]} 47. Kh4 {[%clk 0:00:09]}  Rxa4 {[%clk 0:00:03]} 48. Kg5 {[%clk 0:00:10]}  Rxa5 {[%clk 0:00:04]} 49. bxa5 {[%clk 0:00:10]}  Kxc7 {[%clk 0:00:04]} 50. Kxg6 {[%clk 0:00:11]}  f4 {[%clk 0:00:05]} 51. Kf5 {[%clk 0:00:12]}  f3 {[%clk 0:00:06]} 52. Ke5 {[%clk 0:00:13]}  f2 {[%clk 0:00:07]} 53. Kd5 {[%clk 0:00:14]}  f1=Q {[%clk 0:00:08]} 54. Kc5 {[%clk 0:00:14]}  Qb5+ {[%clk 0:00:08]} 55. Kd4 {[%clk 0:00:15]}  Qxa5 {[%clk 0:00:09]} 56. Kc4 {[%clk 0:00:16]}  Qb5+ {[%clk 0:00:10]} 57. Kc3 {[%clk 0:00:17]}  Kb6 {[%clk 0:00:10]} 58. Kc2 {[%clk 0:00:17]}  a5 {[%clk 0:00:11]} 59. Kc3 {[%clk 0:00:18]}  Qb4+ {[%clk 0:00:11]} 60. Kc2 {[%clk 0:00:19]}  Kb5 {[%clk 0:00:12]} 61. Kd3 {[%clk 0:00:19]}  a4 {[%clk 0:00:13]} 62. Ke2 {[%clk 0:00:19]}  Qb3 {[%clk 0:00:14]} 0-1


[Site "https://www.chess.com"]

[Event "Titled Tuesday Blitz October 25 Late 2022"]
[White "Andreikin, Dmitry"]
[Black "Kollars, Dmitrij"]
[WhiteFideId "4158814"]
[BlackFideId "12909572"]
[WhiteElo "2736"]
[BlackElo "2584"]
[Result "0-1"]
[Round "06"]
[TimeControl "180+1"]
[Date "2022.10.26"]
[WhiteClock "0:00:11"]
[BlackClock "0:00:11"]

1. c4 {[%clk 0:03:00]}  e5 {[%clk 0:02:57]} 2. Nc3 {[%clk 0:03:00]}  Nf6 {[%clk 0:02:57]} 3. Nf3 {[%clk 0:03:01]}  Nc6 {[%clk 0:02:56]} 4. e4 {[%clk 0:03:02]}  Bb4 {[%clk 0:02:56]} 5. d3 {[%clk 0:03:02]}  d6 {[%clk 0:02:54]} 6. a3 {[%clk 0:03:02]}  Bc5 {[%clk 0:02:53]} 7. b4 {[%clk 0:03:02]}  Bb6 {[%clk 0:02:50]} 8. Na4 {[%clk 0:03:02]}  Bd4 {[%clk 0:02:48]} 9. Nxd4 {[%clk 0:03:01]}  Nxd4 {[%clk 0:02:49]} 10. Nc3 {[%clk 0:03:01]}  O-O {[%clk 0:02:48]} 11. Ne2 {[%clk 0:02:59]}  Ne6 {[%clk 0:02:19]} 12. g3 {[%clk 0:02:44]}  a6 {[%clk 0:02:19]} 13. Bg2 {[%clk 0:02:36]}  b5 {[%clk 0:02:19]} 14. O-O {[%clk 0:02:36]}  c5 {[%clk 0:02:16]} 15. f4 {[%clk 0:02:29]}  bxc4 {[%clk 0:02:09]} 16. dxc4 {[%clk 0:02:29]}  Bb7 {[%clk 0:02:08]} 17. Nc3 {[%clk 0:02:15]}  cxb4 {[%clk 0:02:07]} 18. axb4 {[%clk 0:02:14]}  Qb6+ {[%clk 0:02:08]} 19. Kh1 {[%clk 0:02:10]}  Qxb4 {[%clk 0:02:07]} 20. Nd5 {[%clk 0:02:00]}  Bxd5 {[%clk 0:01:27]} 21. cxd5 {[%clk 0:02:00]}  Nc5 {[%clk 0:01:26]} 22. fxe5 {[%clk 0:01:52]}  Nfxe4 {[%clk 0:01:02]} 23. Ba3 {[%clk 0:01:50]}  Qc3 {[%clk 0:01:02]} 24. exd6 {[%clk 0:01:47]}  Nxd6 {[%clk 0:00:43]} 25. Qc1 {[%clk 0:01:41]}  Qxc1 {[%clk 0:00:42]} 26. Rfxc1 {[%clk 0:01:24]}  Ncb7 {[%clk 0:00:39]} 27. Rc6 {[%clk 0:01:20]}  Rfd8 {[%clk 0:00:37]} 28. Rb1 {[%clk 0:01:20]}  Nb5 {[%clk 0:00:34]} 29. Be7 {[%clk 0:01:15]}  Rd7 {[%clk 0:00:20]} 30. d6 {[%clk 0:01:15]}  h5 {[%clk 0:00:16]} 31. Rbc1 {[%clk 0:01:04]}  Ra7 {[%clk 0:00:13]} 32. Rc7 {[%clk 0:00:47]}  N7xd6 {[%clk 0:00:11]} 33. Rxa7 {[%clk 0:00:37]}  Rxa7 {[%clk 0:00:12]} 34. Bxd6 {[%clk 0:00:32]}  Nxd6 {[%clk 0:00:12]} 35. Rc6 {[%clk 0:00:32]}  Nb5 {[%clk 0:00:11]} 36. Bf1 {[%clk 0:00:30]}  Nc7 {[%clk 0:00:10]} 37. Bc4 {[%clk 0:00:26]}  Kf8 {[%clk 0:00:11]} 38. Kg2 {[%clk 0:00:22]}  a5 {[%clk 0:00:11]} 39. Kh3 {[%clk 0:00:20]}  a4 {[%clk 0:00:10]} 40. Kh4 {[%clk 0:00:21]}  g6 {[%clk 0:00:10]} 41. Kg5 {[%clk 0:00:17]}  Kg7 {[%clk 0:00:11]} 42. Kf4 {[%clk 0:00:12]}  a3 {[%clk 0:00:11]} 43. Ke5 {[%clk 0:00:11]}  a2 {[%clk 0:00:09]} 44. Bxa2 {[%clk 0:00:10]}  Rxa2 {[%clk 0:00:10]} 45. Rxc7 {[%clk 0:00:10]}  Rxh2 {[%clk 0:00:11]} 46. Kf4 {[%clk 0:00:11]}  Rf2+ {[%clk 0:00:11]} 47. Ke3 {[%clk 0:00:11]}  Rf6 {[%clk 0:00:12]} 48. Rc5 {[%clk 0:00:11]}  Kh6 {[%clk 0:00:11]} 49. Ke2 {[%clk 0:00:11]}  Rf5 {[%clk 0:00:11]} 50. Rc4 {[%clk 0:00:10]}  Kg5 {[%clk 0:00:11]} 51. Rb4 {[%clk 0:00:11]}  Re5+ {[%clk 0:00:12]} 52. Kf3 {[%clk 0:00:11]}  f5 {[%clk 0:00:11]} 53. Rb6 {[%clk 0:00:12]}  Rc5 {[%clk 0:00:11]} 54. Kg2 {[%clk 0:00:11]}  Rc4 {[%clk 0:00:11]} 55. Kh3 {[%clk 0:00:11]}  h4 {[%clk 0:00:11]} 0-1


[Site "https://www.chess.com"]

[Event "Titled Tuesday Blitz October 25 Late 2022"]
[White "Annaberdiyev, Babageldi"]
[Black "Souleidis, Georgios"]
[WhiteFideId "14000385"]
[BlackFideId "4206827"]
[WhiteElo "2332"]
[BlackElo "2401"]
[Result "1-0"]
[Round "06"]
[TimeControl "180+1"]
[Date "2022.10.26"]
[WhiteClock "0:01:14"]
[BlackClock "0:00:20"]

1. e4 {[%clk 0:03:00]}  c5 {[%clk 0:02:58]} 2. Nf3 {[%clk 0:03:00]}  e6 {[%clk 0:02:58]} 3. d3 {[%clk 0:03:00]}  d5 {[%clk 0:02:58]} 4. Nbd2 {[%clk 0:03:01]}  Nc6 {[%clk 0:02:58]} 5. g3 {[%clk 0:03:01]}  g6 {[%clk 0:02:58]} 6. Bg2 {[%clk 0:03:00]}  Bg7 {[%clk 0:02:59]} 7. O-O {[%clk 0:03:00]}  Nge7 {[%clk 0:02:59]} 8. Re1 {[%clk 0:03:01]}  O-O {[%clk 0:02:59]} 9. e5 {[%clk 0:02:55]}  h6 {[%clk 0:02:57]} 10. h4 {[%clk 0:02:45]}  b6 {[%clk 0:02:54]} 11. c3 {[%clk 0:02:42]}  a5 {[%clk 0:02:53]} 12. Nf1 {[%clk 0:02:41]}  Ba6 {[%clk 0:02:47]} 13. N1h2 {[%clk 0:02:40]}  Qc7 {[%clk 0:02:47]} 14. Bf4 {[%clk 0:02:35]}  h5 {[%clk 0:02:12]} 15. Qd2 {[%clk 0:02:34]}  Nf5 {[%clk 0:02:06]} 16. g4 {[%clk 0:02:35]}  hxg4 {[%clk 0:02:04]} 17. Nxg4 {[%clk 0:02:35]}  Rfd8 {[%clk 0:01:49]} 18. h5 {[%clk 0:02:33]}  a4 {[%clk 0:01:33]} 19. Nf6+ {[%clk 0:02:24]}  Kf8 {[%clk 0:01:28]} 20. h6 {[%clk 0:02:20]}  Bh8 {[%clk 0:01:28]} 21. Ng5 {[%clk 0:02:17]}  a3 {[%clk 0:00:51]} 22. b3 {[%clk 0:02:16]}  Qc8 {[%clk 0:00:34]} 23. Ngh7+ {[%clk 0:02:06]}  Ke7 {[%clk 0:00:34]} 24. Bg5 {[%clk 0:02:07]}  Bxf6 {[%clk 0:00:26]} 25. Nxf6 {[%clk 0:02:03]}  Kf8 {[%clk 0:00:25]} 26. Bf3 {[%clk 0:01:36]}  Nce7 {[%clk 0:00:24]} 27. Kg2 {[%clk 0:01:34]}  Qc6 {[%clk 0:00:23]} 28. Rh1 {[%clk 0:01:32]}  Qb5 {[%clk 0:00:23]} 29. h7 {[%clk 0:01:29]}  Kg7 {[%clk 0:00:23]} 30. Nh5+ {[%clk 0:01:14]}  gxh5 {[%clk 0:00:20]} 31. Bf6+ {[%clk 0:01:14]} 1-0


[Site "https://www.chess.com"]

[Event "Titled Tuesday Blitz October 25 Late 2022"]
[White "Babazada, Khazar"]
[Black "Bruha, Nicholas"]
[WhiteFideId "13413554"]
[BlackFideId "30938988"]
[WhiteElo "2367"]
[BlackElo "2226"]
[Result "1-0"]
[Round "06"]
[TimeControl "180+1"]
[Date "2022.10.26"]
[WhiteClock "0:00:07"]
[BlackClock "0:00:12"]

1. c4 {[%clk 0:02:59]}  e6 {[%clk 0:02:59]} 2. Nf3 {[%clk 0:02:58]}  d5 {[%clk 0:02:59]} 3. b3 {[%clk 0:02:56]}  d4 {[%clk 0:02:57]} 4. g3 {[%clk 0:02:54]}  c5 {[%clk 0:02:56]} 5. Bg2 {[%clk 0:02:54]}  Nc6 {[%clk 0:02:53]} 6. O-O {[%clk 0:02:54]}  e5 {[%clk 0:02:53]} 7. e3 {[%clk 0:02:53]}  Bd6 {[%clk 0:02:53]} 8. exd4 {[%clk 0:02:53]}  exd4 {[%clk 0:02:51]} 9. d3 {[%clk 0:02:51]}  Nge7 {[%clk 0:02:52]} 10. Nbd2 {[%clk 0:02:49]}  O-O {[%clk 0:02:51]} 11. Ne4 {[%clk 0:02:49]}  h6 {[%clk 0:02:42]} 12. Re1 {[%clk 0:02:47]}  Ng6 {[%clk 0:02:34]} 13. Nxd6 {[%clk 0:02:41]}  Qxd6 {[%clk 0:02:35]} 14. Nd2 {[%clk 0:02:42]}  b6 {[%clk 0:02:27]} 15. Ne4 {[%clk 0:02:36]}  Qc7 {[%clk 0:02:27]} 16. Qh5 {[%clk 0:02:36]}  Bb7 {[%clk 0:02:25]} 17. Bxh6 {[%clk 0:02:35]}  gxh6 {[%clk 0:02:25]} 18. Qxh6 {[%clk 0:01:52]}  Qe5 {[%clk 0:02:24]} 19. h4 {[%clk 0:01:52]}  Qg7 {[%clk 0:02:24]} 20. Qxg7+ {[%clk 0:01:52]}  Kxg7 {[%clk 0:02:24]} 21. Nd6 {[%clk 0:01:52]}  Nb4 {[%clk 0:02:02]} 22. Bxb7 {[%clk 0:01:37]}  Rad8 {[%clk 0:01:57]} 23. Nf5+ {[%clk 0:01:35]}  Kf6 {[%clk 0:01:56]} 24. g4 {[%clk 0:01:31]}  Nc2 {[%clk 0:01:55]} 25. Be4 {[%clk 0:00:48]}  Nxa1 {[%clk 0:01:30]} 26. Rxa1 {[%clk 0:00:29]}  Rh8 {[%clk 0:01:30]} 27. g5+ {[%clk 0:00:25]}  Ke5 {[%clk 0:01:28]} 28. Re1 {[%clk 0:00:21]}  Kf4 {[%clk 0:01:27]} 29. Nh6 {[%clk 0:00:18]}  Ne5 {[%clk 0:00:36]} 30. Bd5 {[%clk 0:00:12]}  f5 {[%clk 0:00:30]} 31. Rxe5 {[%clk 0:00:06]}  Kxe5 {[%clk 0:00:28]} 32. Nf7+ {[%clk 0:00:06]}  Kf4 {[%clk 0:00:24]} 33. Nxd8 {[%clk 0:00:06]}  Rxd8 {[%clk 0:00:20]} 34. g6 {[%clk 0:00:06]}  Rd7 {[%clk 0:00:12]} 35. Bf7 {[%clk 0:00:07]} 1-0


[Site "https://www.chess.com"]

[Event "Titled Tuesday Blitz October 25 Late 2022"]
[White "Ballester Llagaria, Luis Eduardo"]
[Black "Sarkar, Justin"]
[WhiteFideId "2297620"]
[BlackFideId "2010011"]
[WhiteElo "2344"]
[BlackElo "2250"]
[Result "1-0"]
[Round "06"]
[TimeControl "180+1"]
[Date "2022.10.26"]
[WhiteClock "0:02:40"]
[BlackClock "0:00:02"]

1. e4 {[%clk 0:03:00]}  e5 {[%clk 0:02:57]} 2. Nf3 {[%clk 0:03:00]}  Nc6 {[%clk 0:02:57]} 3. Bc4 {[%clk 0:03:00]}  Nf6 {[%clk 0:02:53]} 4. O-O {[%clk 0:03:00]}  Nxe4 {[%clk 0:02:42]} 5. Nc3 {[%clk 0:03:00]}  Nxc3 {[%clk 0:01:42]} 6. dxc3 {[%clk 0:03:01]}  f6 {[%clk 0:01:42]} 7. Nh4 {[%clk 0:02:58]}  g6 {[%clk 0:01:38]} 8. f4 {[%clk 0:02:58]}  Qe7 {[%clk 0:01:17]} 9. Kh1 {[%clk 0:02:58]}  d6 {[%clk 0:01:11]} 10. Qf3 {[%clk 0:02:52]}  e4 {[%clk 0:00:42]} 11. Qe2 {[%clk 0:02:48]}  f5 {[%clk 0:00:39]} 12. g3 {[%clk 0:02:49]}  Be6 {[%clk 0:00:34]} 13. Be3 {[%clk 0:02:48]}  Bxc4 {[%clk 0:00:18]} 14. Qxc4 {[%clk 0:02:49]}  O-O-O {[%clk 0:00:17]} 15. Rfd1 {[%clk 0:02:49]}  Bg7 {[%clk 0:00:15]} 16. a4 {[%clk 0:02:46]}  Bf6 {[%clk 0:00:14]} 17. Ng2 {[%clk 0:02:45]}  g5 {[%clk 0:00:09]} 18. a5 {[%clk 0:02:46]}  a6 {[%clk 0:00:08]} 19. b4 {[%clk 0:02:45]}  h5 {[%clk 0:00:04]} 20. b5 {[%clk 0:02:44]}  Nb8 {[%clk 0:00:03]} 21. bxa6 {[%clk 0:02:41]}  Nxa6 {[%clk 0:00:02]} 22. Qd5 {[%clk 0:02:40]} 1-0


[Site "https://www.chess.com"]